Cogmind - Beta 14 @@@ ROGUE MODE // 2024.08.08 @ 13:22:49 Player: CatgirlLyra Result: Destroyed by B-75 Beast with Magnetic Acceleration Cannon Performance ------------- Evolutions (4) 2000 Regions Visited (6) 1200 Robots Destroyed (56) 280 Value Destroyed (1664) 1664 Prototype IDs (21) 420 Alien Tech Used (0) 0 Bonus (315) 315 TOTAL SCORE: 5879 Bonus ------- Follower Combat Kills 89 Registered with UFD 300 Friendly Fire -74 Cogmind --------- Core Integrity 0/850 Matter 300/300 Energy 79/100 System Corruption 11% Temperature Cool (0) Movement Core (700) Ox13 Location -6/Extension Parts ------- > --- POWER (2) -------- (None) > --- PROPULSION (4) --- (None) > --- UTILITY (7) ------ High-capacity Storage Unit Improved System Shield A0-MCA's Component Scanner > --- WEAPON (2) ------- (None) > --- INVENTORY (20) --- Advanced Heat Sink Cooling System Huge Storage Unit Matter Compressor (250) Experimental Terrain Scan Processor Improved Targeting Computer Transmission Jammer Hardened Light Armor Plating Improved Light Armor Plating Improved Light Armor Plating Improved Light Armor Plating Rocket Launcher Rocket Launcher CPS Tube (2) CPS Tube (2) Peak State ------------ > --- POWER ------------ Angular Momentum Engine Light Angular Momentum Engine > --- PROPULSION ------- Carbon-fiber Leg Carbon-fiber Leg Flexi-carbon Leg > --- UTILITY ---------- Scrap Suit Improved Cooling System High-capacity Storage Unit Transmission Jammer A0-MCA's Component Scanner > --- WEAPON ----------- Heavy Laser Plasma Rifle > --- INVENTORY -------- Light Angular Momentum Engine Advanced Heat Sink Cooling System Huge Storage Unit Matter Compressor Experimental Terrain Scan Processor Improved Targeting Computer Hardened Light Armor Plating Hardened Light Armor Plating Improved Light Armor Plating Improved Light Armor Plating Improved System Shield Rocket Launcher Rocket Launcher CPS Tube CPS Tube CPS Tube Vortex Trap Vortex Trap [Rating: 61] Favorites ----------- Power Improved Ion Engine Engine Improved Ion Engine Power Core Light Nuclear Core Propulsion Light Treads Treads Light Treads Leg Carbon-fiber Leg Wheel Compact Wheel Utility High-capacity Storage Unit Device Scrap Suit Storage High-capacity Storage Unit Processor A0-MCA's Component Scanner Hackware Improved System Shield Protection Hardened Light Armor Plating Weapon Shotgun Energy Gun Riot Gun Ballistic Gun Shotgun Launcher Rocket Launcher Special Weapon Mining Laser Piercing Weapon Heavy Pick Build | -11 -10 -10 -9 -9 -6 -6 ------- Run | Yrd Mat Sub Rec Scr Fac Ext Slots Evolved 8 | . . . . . 8 . Power 1 | . . . . . 1 . Propulsion 2 | . . . . . 2 . Utility 5 | . . . . . 5 . Weapon . | . . . . . . . Parts Attached 94 | 6 10 21 13 10 24 10 Power 13 | 1 . 4 1 . 6 1 Engine 11 | 1 . 4 1 . 4 1 Core 2 | . . . . . 2 . Reactor . | . . . . . . . Propulsion 17 | 2 1 2 4 1 6 1 Treads 10 | 2 1 1 2 1 2 1 Leg 4 | . . . . . 4 . Wheel 3 | . . 1 2 . . . Hover . | . . . . . . . Flight . | . . . . . . . Utility 31 | 1 6 4 6 3 6 5 Device 7 | . 1 2 . . 3 1 Storage 8 | 1 4 1 . 2 . . Processor 3 | . 1 . 1 1 . . Hackware 1 | . . . . . . 1 Protection 12 | . . 1 5 . 3 3 Artifact . | . . . . . . . Weapon 33 | 2 3 11 2 6 6 3 Energy Gun 11 | . 2 6 . . 2 1 Energy Cannon . | . . . . . . . Ballistic Gun 14 | 2 . 3 2 4 3 . Ballistic Cannon . | . . . . . . . Launcher 2 | . . . . 1 1 . Special Weapon 5 | . 1 2 . . . 2 Impact Weapon . | . . . . . . . Slashing Weapon . | . . . . . . . Piercing Weapon 1 | . . . . 1 . . Special Melee Weapon . | . . . . . . . Unidentified Prototypes . | . . . . . . . Parts Lost 29 | . . 4 2 . 12 11 Power 7 | . . . . . 4 3 Propulsion 10 | . . 2 . . 5 3 Utility 5 | . . . 1 . 1 3 Weapon 7 | . . 2 1 . 2 2 Highest Loss Streak 11 | . . 2 2 . 7 11 To Critical Strikes . | . . . . . . . Average Slot Usage (%) 96 | . 98 98 98 100 85 78 Engine 12 | . 14 14 14 14 5 12 Treads 23 | . 28 27 15 28 19 1 Wheel 1 | . . . 11 . . . Device 6 | . 7 8 . . 18 17 Storage 12 | . 14 13 14 14 6 6 Processor 5 | . 5 4 . 6 6 6 Protection 5 | . . . 12 7 6 1 Energy Gun 5 | . 10 16 . . 1 12 Ballistic Gun 19 | . 17 11 27 27 11 . Peak Build Rating 61 | 6 8 14 16 25 61 61 Average Rating 23 | 4 7 11 15 19 53 58 On Entrance 17 | . 6 8 13 16 25 56 Naked Turns . | . . . . . . . Heaviest Build 80 | 14 29 54 61 59 77 80 Greatest Support 80 | 40 40 40 40 40 80 30 Greatest Overweight (x) 13 | 2 . 2 3 1 4 13 Average Overweight (x) . | . . . 1 1 . 2 Largest Inventory Capacity 25 | 8 20 20 20 25 20 20 Average Capacity 18 | 6 12 14 20 20 20 20 Most Carried 20 | 6 12 15 20 20 20 19 Average Carried 17 | 3 9 13 17 19 18 18 Final Capacity 20 | 8 15 20 20 20 20 20 Final Carried 20 | 6 12 9 20 20 19 15 Class Distribution -------------------- 92% | Mutant 6% | Scavenger-Mutant Dominant Class ---------------- Mutant | -10/Materials Mutant | -10/Subcaves Mutant | -9/Recycling Mutant | -9/Scraptown Mutant | -6/Factory Scavenger-Mutant | -6/Extension Resources | -11 -10 -10 -9 -9 -6 -6 ----------- Run | Yrd Mat Sub Rec Scr Fac Ext Matter Collected 2263 | 138 470 381 256 114 708 196 Remotely . | . . . . . . . Salvage Created 2241 | . 559 384 392 . 667 239 Parts 130 | . 36 25 18 . 35 16 Haulers Intercepted 1 | . 1 . . . . . Recyclers Shooed 3 | . 2 . 1 . . . Parts Field Recycled . | . . . . . . . Retrieved Matter . | . . . . . . . Parts Self-Destructed 15 | . . 15 . . . . Prevented . | . . . . . . . Kills | -11 -10 -10 -9 -9 -6 -6 ------- Run | Yrd Mat Sub Rec Scr Fac Ext Combat Hostiles Destroyed 39 | . 12 10 2 . 13 2 Guns 38 | . 12 10 2 . 13 1 AOE 1 | . . . . . . 1 Classes Destroyed 14 | . 5 2 2 . 4 1 Worker 4 | . 1 . . . 3 . Builder 3 | . . . . . 2 1 Tunneler 1 | . . . . . 1 . Hauler 1 | . 1 . . . . . Recycler 5 | . . . 4 . . 1 Turret 2 | . . 2 . . . . Watcher 1 | . 1 . . . . . Swarmer 11 | . 3 4 . . 4 . Grunt 14 | . 9 . . . 5 . Sentry 4 | . . . 2 . 1 1 Hunter 1 | . . . . . 1 . Programmer 2 | . . . . . 2 . Behemoth 1 | . . . . . . 1 Subdweller 6 | . . 6 . . . . Best Kill Streak 5 | . 3 3 2 . 5 3 Combat Bots Only 4 | . 3 3 1 . 4 1 Max Kills in Single Turn 2 | . 1 1 1 . 2 2 Gunslinging 1 | . . . . . 1 . Exploded 1 | . . . . . . 1 Melee . | . . . . . . . Uniques/NPCs Destroyed . | . . . . . . . Combat | -11 -10 -10 -9 -9 -6 -6 -------- Run | Yrd Mat Sub Rec Scr Fac Ext Hostile Shots Fired 511 | . 45 129 14 . 231 92 Missed 163 | . 12 37 2 . 79 33 Damage Taken 5671 | . 407 945 181 . 2460 1678 Core 1109 | . 95 91 48 . 302 573 Absorbed by Shields 32 | . . . . . . 32 Regen/Repaired (Parts) 592 | . 109 . . 431 31 21 Core Remaining (%) 53 | 100 . . . 6 . . Volleys Fired 182 | . 44 54 12 . 61 11 Largest 2 | . 2 2 2 . 2 2 Hottest 150 | . 60 150 56 . 108 144 Shots Fired 338 | . 82 99 24 . 113 20 Gun 333 | . 82 96 24 . 113 18 Cannon . | . . . . . . . Launcher . | . . . . . . . Special 5 | . . 3 . . . 2 Kinetic 238 | . 68 45 24 . 101 . Thermal 75 | . 14 31 . . 12 18 Explosive . | . . . . . . . Electromagnetic 23 | . . 23 . . . . Robot Hit Streak 26 | . 26 19 9 . 12 17 Robot Miss Streak 4 | . 4 4 2 . 4 2 Penetration Max . | . . . . . . . Secondary Targets 3 | . . . . . 3 . Max Gunslinging Chain 1 | . . . . . 1 . Shots Hit Robots 221 | . 58 56 18 . 72 17 Core Hits 95 | . 24 23 6 . 30 12 Critical Kills 1 | . 1 . . . . . Critical Parts Destroyed 4 | . 2 2 . . . . Critical Strikes 9 | . 3 2 . . 1 3 Burn 4 | . . . . . 1 3 Destroy 5 | . 3 2 . . . . Melee Attacks . | . . . . . . . Impact . | . . . . . . . Slashing . | . . . . . . . Piercing . | . . . . . . . Sneak Attacks . | . . . . . . . Combat Hostiles . | . . . . . . . Follow-up Attacks . | . . . . . . . Damage Inflicted 5129 | . 782 966 366 . 1818 1197 Guns 4151 | . 746 947 356 . 1744 358 Cannons . | . . . . . . . Explosions 913 | . . . . . 74 839 Melee . | . . . . . . . Ramming 65 | . 36 19 10 . . . Kinetic 2933 | . 647 447 356 . 1483 . Thermal 990 | . 99 272 . . 261 358 Explosive 74 | . . . . . 74 . Electromagnetic 228 | . . 228 . . . . Impact . | . . . . . . . Slashing . | . . . . . . . Piercing . | . . . . . . . Entropic 839 | . . . . . . 839 Highest Corruption 11 | . 1 1 1 . 8 11 Average Corruption 2 | . 1 1 1 . 2 8 Corruption Purged . | . . . . . . . Corruption Blocked . | . . . . . . . Effects 74 | . 13 21 11 . 10 19 Message Errors 15 | . 3 4 1 . 4 3 Matter Fused 17 | . 3 4 4 . 2 4 Heat Flow Errors 11 | . 1 4 3 . . 3 Energy Discharges 10 | . 1 3 1 . 2 3 Parts Rejected 1 | . . . . . . 1 Parts Fused 1 | . . 1 . . . . Data Loss (minor) 12 | . 3 3 2 . 2 2 Data Loss (major) 3 | . 2 1 . . . . Misfires 1 | . . . . . . 1 Misdirections 1 | . . . . . . 1 Weapon Failures 2 | . . 1 . . . 1 Overload Shots . | . . . . . . . Overflow Damage 151 | . . . . . . 151 Projectiles . | . . . . . . . Explosions 151 | . . . . . . 151 Melee . | . . . . . . . Knockbacks 2 | . 1 . 1 . . . Impact 2 | . 1 . 1 . . . Kinetic . | . . . . . . . Secondary . | . . . . . . . Self-Inflicted Damage 433 | . . 9 . . 61 363 Shots 3 | . . . . . 1 2 Rammed 10 | . 8 1 1 . . . Targets Rammed 13 | . 9 1 3 . . . Kicked . | . . . . . . . Crushed 3 | . 1 . 2 . . . Highest Temperature 390 | . 137 255 156 . 14 390 Average Temperature 79 | . 27 93 57 . 6 126 Received Heat Transfer 1257 | . 213 342 54 . 459 189 Effects 3 | . . 1 . . . 2 Energy Bleed 1 | . . 1 . . . . Interference 2 | . . . . . . 2 Siege Activations . | . . . . . . . Robots Corrupted . | . . . . . . . Combat Hostiles . | . . . . . . . Parts Fried . | . . . . . . . Impact Corruptions . | . . . . . . . Robots Melted . | . . . . . . . Combat Hostiles . | . . . . . . . Parts Melted 5 | . . . . . 3 2 Heat Transferred 2407 | . 225 475 . . 700 1007 Parts Sabotaged . | . . . . . . . Parts Stolen . | . . . . . . . Parts Stripped . | . . . . . . . Power Chain Reactions . | . . . . . . . Alert | -11 -10 -10 -9 -9 -6 -6 ------- Run | Yrd Mat Sub Rec Scr Fac Ext Peak Influence 265 | . 265 . 124 . 226 114 Initial 112 | . . . 112 . . 46 Average 67 | . 90 . 53 . 66 61 Maximum Alert Level 1 | . 1 . . . 1 . Low Security (%) 95 | 100 87 . 100 . 96 100 Level 1 4 | . 12 . . . 3 . Level 2 . | . . . . . . . Level 3 . | . . . . . . . Level 4 . | . . . . . . . Level 5 . | . . . . . . . High Security . | . . . . . . . Max Security . | . . . . . . . Squads Dispatched 5 | . 2 . . . 2 1 Investigation 1 | . 1 . . . . . Extermination 2 | . . . . . 2 . Reinforcement 2 | . 1 . . . . 1 Assault . | . . . . . . . Garrison . | . . . . . . . Intercept . | . . . . . . . Searches Triggered . | . . . . . . . Construction Impeded . | . . . . . . . Haulers Reinforced . | . . . . . . . Active Scanning Responses . | . . . . . . . Cargo Convoy Interrupts . | . . . . . . . Stealth | -11 -10 -10 -9 -9 -6 -6 --------- Run | Yrd Mat Sub Rec Scr Fac Ext Distress Signals . | . . . . . . . Communications Jammed 1 | . . . . . . 1 Distress Signals 1 | . . . . . . 1 Times Spotted 66 | . 21 19 2 . 14 10 Peak Tracking Total 6 | . 5 6 1 . 4 4 Tactical Retreats 5 | . 1 4 . . . . Traps | -11 -10 -10 -9 -9 -6 -6 ------- Run | Yrd Mat Sub Rec Scr Fac Ext Traps Triggered 12 | . 1 1 . . 2 8 Indirectly . | . . . . . . . Trap Hack Attempts . | . . . . . . . Triggered . | . . . . . . . Disarmed 7 | . . . . . . 7 Reprogrammed . | . . . . . . . Reused . | . . . . . . . Traps Extracted . | . . . . . . . Installed 2 | . . . . . . 2 Triggered . | . . . . . . . Most Traps Carried 4 | . . 2 2 4 2 2 Machines | -11 -10 -10 -9 -9 -6 -6 ---------- Run | Yrd Mat Sub Rec Scr Fac Ext Machines Disabled 6 | . . 1 . . 4 1 Max in Single Turn 3 | . . 1 . . 3 1 Machines Repaired . | . . . . . . . Machines Dismantled . | . . . . . . . Machines Sabotaged . | . . . . . . . Overloaded Fab Kills . | . . . . . . . Hacking | -11 -10 -10 -9 -9 -6 -6 --------- Run | Yrd Mat Sub Rec Scr Fac Ext Machines Accessed 35 | . 7 1 7 10 3 7 Terminals 20 | . 6 . 5 . 2 7 Fabricators 1 | . . . . . 1 . Repair Stations 1 | . 1 . . . . . Recycling Units . | . . . . . . . Scanalyzers . | . . . . . . . Garrison Access . | . . . . . . . Total Hacks 147 | . 22 3 37 58 5 22 Successful 112 | . 9 3 30 58 2 10 Failed 35 | . 13 . 7 . 3 12 Catastrophic 11 | . 4 . 1 . 1 5 Database Lockouts . | . . . . . . . Manual 18 | . 9 . 6 . . 3 Terminals 57 | . 19 . 12 . 4 22 Fabricators 1 | . . . . . 1 . Repair Stations 3 | . 3 . . . . . Recycling Units . | . . . . . . . Scanalyzers . | . . . . . . . Garrison Access . | . . . . . . . Terminal Hacks 108 | . 6 3 30 58 2 9 Record 84 | . . 3 24 57 . . Robot Schematic 1 | . . . 1 . . . Robot Analysis 2 | . 2 . . . . . Prototype ID Bank 1 | . 1 . . . . . Open Door 4 | . . . . . 1 3 Branch Access Points 1 | . . . 1 . . . Terminal Index 3 | . 1 . 1 . . 1 Locate Traps 3 | . 1 . . . 1 1 Disarm Traps 3 | . . . . . . 3 Recall Investigation 1 | . 1 . . . . . Hauler Manifests 1 | . . . . . . 1 Zone Layout 2 | . . . 2 . . . Derelict Proto ID Bank 1 | . . . . 1 . . Release Object 1 | . . . 1 . . . Fabricator Hacks . | . . . . . . . Repair Station Hacks 2 | . 2 . . . . . Scan Component 1 | . 1 . . . . . Repair 1 | . 1 . . . . . Recycling Unit Hacks . | . . . . . . . Scanalyzer . | . . . . . . . Garrison Access Hacks . | . . . . . . . Unauthorized Hacks 2 | . 1 . . . . 1 Terminals 2 | . 1 . . . . 1 Botnet 2 | . 1 . . . . 1 Fabricators . | . . . . . . . Repair Stations . | . . . . . . . Recycling Units . | . . . . . . . Scanalyzers . | . . . . . . . Garrison Access . | . . . . . . . Data Cores Recovered . | . . . . . . . Used . | . . . . . . . Hacking Detections 19 | . 6 . 5 . 3 5 Full Trace Events 1 | . 1 . . . . . Feedback Events . | . . . . . . . Feedback Blocked . | . . . . . . . Robot Schematics Acquired 1 | . . . 1 . . . Robots Built . | . . . . . . . Authchips . | . . . . . . . Time . | . . . . . . . Total Robot Build Rating . | . . . . . . . Part Schematics Acquired . | . . . . . . . Parts Built . | . . . . . . . Authchips . | . . . . . . . Time . | . . . . . . . Total Part Build Rating . | . . . . . . . Parts Repaired 1 | . 1 . . . . . Time 26 | . 26 . . . . . Parts Recycled . | . . . . . . . Recycled Matter . | . . . . . . . Retrieved Matter . | . . . . . . . Retrieved Components . | . . . . . . . Parts Scanalyzed . | . . . . . . . Part Schematics Acquired . | . . . . . . . Parts Damaged . | . . . . . . . Bothacking | -11 -10 -10 -9 -9 -6 -6 ------------ Run | Yrd Mat Sub Rec Scr Fac Ext Used RIF Installer . | . . . . . . . Robots Hacked . | . . . . . . . Non-combat . | . . . . . . . Combat . | . . . . . . . Robot Hacks Applied . | . . . . . . . Relay Couplers Released . | . . . . . . . Fabnet Peak Effective % . | . . . . . . . Robots Rewired . | . . . . . . . Allies Hacked . | . . . . . . . Hacks Repelled . | . . . . . . . Allies | -11 -10 -10 -9 -9 -6 -6 -------- Run | Yrd Mat Sub Rec Scr Fac Ext Total Allies 3 | . . . . . . 3 Largest Group 3 | . . . . . . 3 Highest-Rated Group 221 | . . . . . . 221 Highest-Rated Ally 159 | . . . . . . 159 Total Orders . | . . . . . . . Ally Attacks 47 | . . . . . . 47 Total Damage 807 | . . . . . . 807 Kills 3 | . . . . . . 3 Allies Corrupted . | . . . . . . . Allies Melted . | . . . . . . . Intel | -11 -10 -10 -9 -9 -6 -6 ------- Run | Yrd Mat Sub Rec Scr Fac Ext Robot Analysis Total 2 | . 2 . . . . . Derelict Logs Recovered 4 | . . 3 . 1 . . Drone Launches . | . . . . . . . Drone Recoveries . | . . . . . . . Exploration | -11 -10 -10 -9 -9 -6 -6 ------------- Run | Yrd Mat Sub Rec Scr Fac Ext Turns Passed 10444 | 77 1110 1983 1160 4089 1363 662 Spaces Moved 4712 | 41 550 1104 632 1622 546 217 Core 13 | 10 . . . . . 3 Treads 3999 | 31 550 1051 246 1622 497 2 Legs 261 | . . . . . 49 212 Wheels 439 | . . 53 386 . . . Hover . | . . . . . . . Flight . | . . . . . . . Fastest Speed 50 | 50 160 120 115 240 160 240 Average Speed 202 | 153 160 158 168 249 208 266 Slowest Speed 700 | 160 160 160 320 250 400 700 Overloaded Moves . | . . . . . . . Propulsion Burnouts . | . . . . . . . Robots Hopped . | . . . . . . . Cave-ins Triggered 1 | . . . . . . 1 Exploration Rate (%) 52 | 4 64 59 96 92 14 37 Regions Visited 6 Branch Regions 4 Pre-discovered Areas 1 | . . 1 . . . . Known Exits Taken 2 | . 1 1 . . . . Unknown Exits Taken 4 | 1 . . 1 1 1 . Scrap Searched 7 | . . 1 . 6 . . Spaces Dug 1 | . . 1 . . . . Terrain Destroyed 105 | . . 9 3 . 28 65 Melee . | . . . . . . . Projectile 14 | . . 9 3 . 2 . AOE 91 | . . . . . 26 65 Terrain Rammed . | . . . . . . . Walls Destroyed . | . . . . . . . Machines Disabled . | . . . . . . . Actions | -11 -10 -10 -9 -9 -6 -6 --------- Run | Yrd Mat Sub Rec Scr Fac Ext Total 5292 | 53 694 1233 700 1668 661 283 Wait 118 | . 66 12 9 4 17 10 Move 4706 | 40 549 1103 631 1621 545 217 Hop . | . . . . . . . Pick Up 84 | 7 7 24 21 15 10 . Fast Attach 31 | 5 5 2 3 2 11 3 Attach 25 | 1 1 9 2 . 9 3 Detach 3 | . 2 . . . . 1 Swap 38 | . 4 10 8 8 4 4 Drop 60 | . 7 18 11 18 4 2 Fire 182 | . 44 54 12 . 61 11 Melee . | . . . . . . . Ram 1 | . . 1 . . . . Kick . | . . . . . . . Crush 12 | . 9 . 3 . . . Escape Stasis 30 | . . . . . . 30 Rewire . | . . . . . . . Trap 2 | . . . . . . 2 Miscellaneous . | . . . . . . . Route ------- -11/Scrapyard -10/Materials (discovered 3 exits: *Mat x2 / *Sub) -10/Subcaves -9/Recycling (discovered 2 exits: *Fac / *Scr) -9/Scraptown -6/Factory -6/Extension History --------- Turn | Location | Event 2 | -11/Scrapyard | Met Revision 17 25 | -11/Scrapyard | Discovered new exit (range 16) 78 | -11/Scrapyard | Entered Materials 252 | -10/Materials | Discovered new exit (range 10) 314 | -10/Materials | Build established: Mutant 472 | -10/Materials | Repaired Lgt. Treads 684 | -10/Materials | Discovered new exit (range 16) 774 | -10/Materials | Identified exit to Materials 972 | -10/Materials | Discovered new exit (range 9) 992 | -10/Materials | Identified exit to Subcaves 1188 | -10/Materials | Entered Subcaves 1216 | -10/Subcaves | Curiously followed by a Cobbler waking with a query about "LVR3C" 1514 | -10/Subcaves | Learned location of Zion (-7) 1514 | -10/Subcaves | Met a Zionite searching for "candidates" 1623 | -10/Subcaves | Core integrity fell below 50% 1734 | -10/Subcaves | Shifting Twisted Machinery released Scrap Shield 1772 | -10/Subcaves | Visited Clippyterm 1777 | -10/Subcaves | Learned Factory garrison access intel 1796 | -10/Subcaves | A swath of the cavern ceiling suddenly collapsed 2288 | -10/Subcaves | A swath of the cavern ceiling suddenly collapsed 2302 | -10/Subcaves | Shifting Twisted Machinery released Hvy. Battle Rifle 2334 | -10/Subcaves | Identified exit to Recycling 2512 | -10/Subcaves | Shifting Twisted Machinery released Piercing Trap 2533 | -10/Subcaves | Learned Materials garrison access intel 2748 | -10/Subcaves | Shifting Twisted Machinery released Shrapnel Trap 3171 | -10/Subcaves | Entered Recycling 3697 | -9/Recycling | Core integrity fell below 20% 3741 | -9/Recycling | Discovered new exit (range 15) 3763 | -9/Recycling | Identified exit to Factory 4266 | -9/Recycling | Scanned before Scraplab entrance 4300 | -9/Recycling | Entered Scraplab 4326 | -9/Recycling | Discovered new exit (range 3) 4331 | -9/Recycling | Entered Scraptown 4331 | -9/Scraptown | System corruption cleaned by C-Scrubber 4709 | -9/Scraptown | Visited Awakened 4774 | -9/Scraptown | Visited CR-KLE's Repair Center 4798 | -9/Scraptown | CR-KLE repaired 7 parts 4827 | -9/Scraptown | Visited Science Testing Area 4847 | -9/Scraptown | Heard Great Nut preacher, LISTEN AND RECITE! 4854 | -9/Scraptown | Visited Red Mages 5826 | -9/Scraptown | Visited Symbiants 6027 | -9/Scraptown | Scanned Subdweller tech in exchange for log data 6035 | -9/Scraptown | Learned Factory security intel 6074 | -9/Scraptown | Discovered new exit (range 5) 6294 | -9/Scraptown | Visited Fellowship of the Rings 6349 | -9/Scraptown | Visited Cyclists 6427 | -9/Scraptown | Visited UFD Registry 6427 | -9/Scraptown | Registered with UFD as "Fibersplitter" 6474 | -9/Scraptown | Entered Cyclist Reading Room 6604 | -9/Scraptown | Visited A0-MCA Data Center 6619 | -9/Scraptown | Given a B rating by A0-MCA 6625 | -9/Scraptown | Found A0-MCA's Component Scanner 6685 | -9/Scraptown | Visited Science Guys 6849 | -9/Scraptown | Visited LU-1G1's Boring Crew 7710 | -9/Scraptown | Visited Supply Room 7778 | -9/Scraptown | Visited Scrapoid Research Area 7845 | -9/Scraptown | Visited Abandonware Association 7912 | -9/Scraptown | Learned abandonware demo "KABOOM.EXE" 7972 | -9/Scraptown | Visited Infowarlord's Domain 8000 | -9/Scraptown | Found Exp. Terrain Scan Processor 8046 | -9/Scraptown | Visited Scrap Suit Storage 8074 | -9/Scraptown | Found Scrap Suit 8163 | -9/Scraptown | Visited Research Penetration Think Tank 8420 | -9/Scraptown | Entered Factory 8420 | -6/Factory | Evolved 8 slots: Power x1, Propulsion x2, Utility x5 8422 | -6/Factory | Loaded intel: 4 garrison access locations 9476 | -6/Factory | Spotted B-75 Beast 9684 | -6/Factory | Lost 7 parts (2p2n1u2w) 9773 | -6/Factory | Discovered new exit (range 6) 9783 | -6/Factory | Entered Extension 9866 | -6/Extension | Rescued a captive Derelict 9918 | -6/Extension | Rescued a captive Derelict 9980 | -6/Extension | Build established: Scavenger-Mutant 10255 | -6/Extension | Rescued A7 10329 | -6/Extension | Spotted B-75 Beast 10376 | -6/Extension | Spotted B-75 Beast 10406 | -6/Extension | Crushed by falling debris 10406 | -6/Extension | System corruption reached 10% 10407 | -6/Extension | Extracted ID and sensor layout for unrecognized location from A7's data core 10418 | -6/Extension | Destroyed B-75 Beast 10424 | -6/Extension | Core integrity fell below 50% 10434 | -6/Extension | Core integrity fell below 20% 10445 | -6/Extension | Destroyed by B-75 Beast with Magnetic Acceleration Cannon Last Messages --------------- 10422_ Installed Vortex Trap. 10424_ R-10 Processor collects Wheel. 10424_ CPS Tube expended. 10424_ CPS modules attach to B-75 Beast. 10425_ ,X NF|SERMH1XYHXSNCEKVQ%|VN% 10426_ Triggered Vortex Trap. 10426_ A wave of accelerated entropy washes over the area. 10426_ Imp. Cooling System destroyed. 10426_ Destroyed Imp. Cooling System. 10426_ Carbon-fiber Leg destroyed. 10426_ Destroyed Carbon-fiber Leg. 10426_ Scrap Suit destroyed. 10426_ Destroyed Scrap Suit. 10426_ R-10 Processor destroyed. 10427_ Lgt. Treads destroyed. 10427_ R-10 Processor collects Wheel. 10430_ Knocked back. 10437_ R-10 Processor collects Rnf. Deuterium Engine. 10441_ System corrupted: Energy discharge (-40). 10442_ Knocked back. Map ----- +----------------------------------------------------+ | ?????????????????????????????????????????????????? | | ???############?????###??????????????????????????? | | #### #????? #??????????????????????????? | | ####### #????## ##?????????????????????????? | | #????## ##???# T#?????????????????????????? | | #????# ######+####???????????????????????? | | #????# % ###?????????????????????? | | #????# ### ""#?????????????????????? | | #????#####"" ""#?????????????????????? | | ### #????????#"T T"#?????????????????????? | | #?# #????????#"" " ""#?????????????????????? | | #????????### "" ""#?????????????????????? | | #######??????????# "" ###?????????????????????? | | ?????????????????# "" ""#?????????????????????? | | ?????????????????# "" ""#?????????????????????? | | ?????????????????# "" T"#?????????????????????? | | ?????????????????# "" ""#?????????????????????? | | ?????????????????# " ""#?????????????????????? | | ?????????????????# #;#?????????????????????? | | ?????????????????# o ;#??????????????????????? | | ?????????????????# ;##?????????????????????? | | ?????????????????# % ; ##????????????????????? | | ?????????????????#;; ; #????????????????????? | | ?????????????????# ##???????????????????? | | ????????????????## % % #???????????????????? | | ????????????????# =@% ##??????????????????? | | ????????????????# ! =] ;# #????????????????? | | ????????????????# *% %! "" ?????????????? | | ????????????????# = = " "????????????? | | ????????????????# BB % R ???????????? | | ????????????????## BB #??????????? | | ?????????????????#;;; #??????????? | | ???????????????? ??????????? | | ??????????????? ??????????? | | ?????????????? ???????????? | | ???????????? ???????????? | | ??????????? uRk %! ????????????? | | ???????????########### ????????????? | | ?????????????????????# ?????????????? | | ?????????????????????# ???????????????? | | ?????????????????????# ?????????????????? | | ?????????????????????# ????????????????????? | | ??????????????????????#####??????????????????????? | | ?????????????????????????????????????????????????? | | ?????????????????????????????????????????????????? | | | | | | | | | | | +----------------------------------------------------+ Best States ------------- Heat Dissipation 64 Coolant Potential 50 Energy Generation 31 Energy Capacity 350 Matter Stores 300 Matter Capacity 300 Sight Range 16 Terrain Scan Density 10 Jamming Range 12 Armor Coverage 800 Evasion (%) 40 Recoil Reduction 4 Defensive Hacking 12 Authchip Count 1 Item Schematics ----------------- None Robot Schematics ------------------ R-06 Scavenger | -9/Recycling | Hacked Fabricated ------------ Nothing Alien Tech Used ----------------- None Achievements -------------- Close Call Challenges ------------ None Game ------ Seed RocketPotentialTelecube Manual? 0 Play Time 01:23:18 Cumulative 79.9 hours Start 2024.08.08 @ 11:53:52 End 2024.08.08 @ 13:22:49 Sessions 1 Manual Loads 0 Difficulty Rogue Special Mode None Game No. 40 Rogue 40 Adventurer 0 Explorer 0 Win Type - Total 3 Types 1/0/0/2/0/0/0/0/0 Lore% 46 Gallery% 60 Achievement% 53 Wizard Run 0 Options --------- Layout 0 ASCII 0 Keyboard 0 Movement Numpad Keybinds 0 Fullscreen 1 Font 18/X11 Map View 76x50 Zoom Use 0% Tactical HUD 1 Map Filters NONE Filters NONE Steam 1 RUN: 20f636d6-cf93-4b67-805c-d37c90246c8d